bitfinex-derivatives/quotes_SOLF0:USTF0_20240906
["timestamp","ask_amount","ask_price","bid_price","bid_amount"]
[1725607297987,3.8951,128.39,128.29,3.53036764]
[1725607298198,0.0535631,128.34,128.32,0.05661816]
[1725607298388,0.05064552,128.34,128.32,0.05661816]
[1725607299792,44.79064552,128.34,128.32,0.05661816]
[1725607299995,3.8977,128.3,128.29,3.53036764]
[1725607300499,3.8977,128.3,128.28,1.5858481]
[1725607300500,3.898,128.29,128.28,1.5858481]
[1725607300688,44.74,128.3,128.2,3.94136425]
[1725607300883,44.74,128.23,128.2,3.94136425]
[1725607301089,3.9004,128.21,128.2,3.94136425]
[1725607301294,44.74,128.23,128.17,3.89579432]
[1725607301494,44.74,128.19,128.17,3.89579432]
[1725607301699,3.9013,128.18,128.17,3.89579432]
[1725607301998,3.9013,128.18,128.17,9.432e-05]
[1725607302298,44.74,128.18,128.1,3.52165423]
[1725607302488,44.74,128.14,128.1,3.52165423]
[1725607302684,3.9031,128.12,128.1,3.52165423]
[1725607302891,44.74,128.14,128.07,1.02859387]
[1725607303099,44.79421364,128.11,128.07,1.02859387]
[1725607303393,3.9043,128.08,128.07,1.02859387]
[1725607303593,0.05421364,128.11,128.07,1.02859387]
[1725607304300,101.66945437,128.18,128.07,1.02859387]
[1725607304890,44.74,128.17,128.07,1.02859387]
[1725607305399,0.04912685,128.13,128.11,0.05261454]
[1725607305694,44.74,128.12,128.11,0.05261454]
[1725607305901,44.74,128.12,128.07,1.02859387]
[1725607306703,0.05548611,128.13,128.07,1.02859387]
[1725607306704,44.74,128.1,128.07,1.02859387]
[1725607306896,0.05440436,128.1,128.07,1.02859387]
[1725607307793,3.9042,128.09,128.07,1.02859387]
[1725607307994,0.05440436,128.1,128.07,1.02859387]
[1725607308397,0.05440436,128.1,128.08,3.9043]
[1725607308793,0.05440436,128.1,128.07,1.02859387]
[1725607310092,0.05440436,128.1,128.07,4.93299387]
[1725607310301,0.05440436,128.1,128.07,1.02859387]
[1725607311106,44.97,128.09,128.07,1.02859387]
[1725607311396,44.97,128.09,128.05,2.88631438]
[1725607311603,44.97,128.06,128.03,2.6694]
[1725607311902,0.05923158,128.07,128.03,2.6694]
[1725607312103,44.97,128.14,128.03,2.6694]
[1725607312307,44.97,128.11,128.02,2.8762402]
[1725607312494,44.97,128.11,128.03,2.6714]
[1725607312700,44.97,128.13,128.03,2.6714]
[1725607312904,146.63945437,128.18,128.03,2.6714]
[1725607312905,3.9026,128.14,128.1,3.9035]
[1725607313199,0.05543476,128.13,128.11,0.05653692]
[1725607313408,0.05454979,128.13,128.11,0.0534081]
[1725607313590,3.9031,128.12,128.11,0.0534081]
[1725607313797,0.05454979,128.13,128.11,0.0534081]
[1725607314000,3.95764979,128.13,128.11,0.0534081]
[1725607314206,0.05454979,128.13,128.11,0.0534081]
[1725607315203,3.9031,128.12,128.11,0.0534081]
[1725607315505,0.05454979,128.13,128.11,0.0534081]
[1725607315703,3.9031,128.12,128.11,0.0534081]
[1725607316405,3.904,128.1,128.03,2.6714]
[1725607316608,44.97,128.11,128.03,6.6361156]
[1725607316804,44.97,128.11,128.06,3.9049]
[1725607317303,44.97,128.11,128.04,3.9054]
[1725607317506,0.05887383,128.08,128.03,2.6714]
[1725607317703,48.8735,128.11,128.03,2.6714]
[1725607317898,44.97,128.11,128.06,3.9048]
[1725607318104,3.9037,128.1,128.06,3.9048]
[1725607318302,146.63945437,128.18,128.03,2.6714]
[1725607318303,44.97,128.13,128.03,2.6714]
[1725607318604,0.05090692,128.09,128.03,2.6714]
[1725607318797,44.97,128.15,128.07,0.05184272]
[1725607319110,44.97,128.15,128.03,2.6714]
[1725607319801,0.05188452,128.1,128.08,0.05845046]
[1725607320004,0.05656144,128.1,128.08,0.05845046]
[1725607320408,146.63945437,128.18,128.08,0.05845046]
[1725607320609,146.63945437,128.18,128.06,3.9048]
[1725607320610,44.97,128.13,128.06,3.9048]
[1725607320806,44.97,128.11,128.03,2.6714]
[1725607321111,44.97,128.11,128.02,6.84212706]
[1725607321112,44.97,128.08,128.02,2.8762402]
[1725607321306,44.97,128.03,128.02,2.8762402]
[1725607321509,48.8759,128.03,128.02,2.8762402]
[1725607321711,0.05825686,128.06,128.02,2.8762402]
[1725607322300,44.97,128.03,128.02,2.8762402]
[1725607322504,44.97,128.03,127.94,6.32193873]
[1725607322701,44.97,128.03,127.94,3.63503873]
[1725607322702,89.94,128.03,127.94,3.63503873]
[1725607322904,44.97,127.99,127.94,3.63503873]
[1725607323214,44.97,128.01,127.94,3.63503873]
[1725607323414,44.97,127.98,127.94,3.63503873]
[1725607323602,44.97,127.96,127.94,3.63503873]
[1725607323803,3.9083,127.95,127.94,3.63503873]
[1725607324003,44.97,127.96,127.94,3.63503873]
[1725607324203,3.9083,127.95,127.94,3.63503873]
[1725607324607,45.25759856,127.95,127.84,2.07797953]
[1725607324807,44.97,127.93,127.84,2.07797953]
[1725607325006,23.32,127.95,127.84,2.07797953]
[1725607325007,44.97,127.95,127.84,2.07797953]
[1725607325206,44.97,127.98,127.85,2.7417]
[1725607325407,44.97,127.95,127.85,2.7417]
[1725607325708,0.05724345,127.91,127.89,0.05897805]
[1725607325906,44.97,127.95,127.84,2.07797953]
[1725607326109,0.0590329,127.91,127.89,0.05499269]
[1725607326304,44.97,127.97,127.88,3.87644996]
[1725607326509,44.97,127.97,127.86,44.97]
[1725607326709,44.97,128.0,127.86,44.97]
[1725607326911,44.97,128.0,127.93,3.9088]
[1725607326912,3.9072,127.99,127.93,3.9088]
[1725607327212,44.97,128.0,127.89,3.81775737]
[1725607327412,44.97,128.05,127.91,44.97]
[1725607327711,44.97,128.08,127.93,45.0261689]
[1725607328010,44.97,128.03,127.96,3.9078]
[1725607328208,44.97,128.03,127.9,2.7821]
[1725607328418,44.97,128.0,127.9,2.7821]
[1725607329020,0.05363216,127.96,127.95,3.9083]
[1725607329221,0.05938048,127.97,127.94,0.05647231]
[1725607329411,0.05938048,127.97,127.94,0.05528131]
[1725607330317,45.05,128.06,127.92,45.05]
[1725607330715,48.956,128.03,127.96,3.9077]
[1725607330911,45.05,128.06,127.93,45.05]
[1725607331310,45.05,128.08,127.98,0.05039655]
[1725607331505,0.05349979,128.04,128.02,0.05118623]
[1725607333915,150.5769941,128.18,128.02,0.05118623]
[1725607334115,150.5769941,128.18,127.98,45.05]
[1725607334116,45.05,128.13,127.98,45.05]
[1725607334308,45.05,128.11,127.98,45.05]
[1725607334509,45.05,128.11,127.97,2.671]
[1725607334717,45.05,128.08,127.97,2.671]
[1725607335219,0.0555107,128.04,128.01,0.05611888]
[1725607335522,0.05817837,128.04,128.01,0.05542393]
[1725607337015,45.05,128.11,127.99,45.05]
[1725607337212,45.05,128.17,128.08,3.9041]
[1725607337420,45.05,128.17,128.01,45.05]
[1725607337813,3.9031,128.12,128.01,45.05]
[1725607338221,0.05578388,128.08,128.05,0.05006363]
[1725607338419,3.9029,128.13,128.08,3.9041]
[1725607338741,0.05986074,128.12,128.09,0.05199615]
[1725607339017,0.05986074,128.12,128.09,0.05132459]
[1725607339421,3.9036,128.11,128.09,0.05132459]
[1725607339622,0.05986074,128.12,128.09,0.05132459]
[1725607340017,0.05986074,128.12,128.09,3.95512459]
[1725607340217,0.05986074,128.12,128.09,0.05132459]
[1725607341219,0.05986074,128.12,128.1,3.9035]
[1725607341419,0.05986074,128.12,128.09,0.05132459]
[1725607341634,0.05986074,128.12,128.11,3.9034]
[1725607341923,45.05,128.22,128.09,45.10132459]
[1725607342128,45.05,128.22,128.09,45.05]
[1725607342320,45.05,128.22,128.1,1.4224]
[1725607342718,3.9004,128.21,128.17,3.9015]
[1725607342920,45.05,128.26,128.14,3.88302834]
[1725607343117,45.05,128.26,128.11,45.05]
[1725607343321,0.04972168,128.2,128.17,0.05369534]
[1725607343530,0.04972168,128.2,128.1,1.4224]
[1725607343531,45.05,128.31,128.18,45.05]
[1725607343721,45.05,128.31,128.19,1.4224]
[1725607343915,45.05,128.31,128.2,3.90880065]
[1725607344121,45.05,128.31,128.19,1.4224]
[1725607344122,45.05,128.29,128.19,1.4224]
[1725607344518,0.0791,128.33,128.19,1.4224]
[1725607344824,0.05693471,128.27,128.25,3.95699738]
[1725607345029,45.05,128.3,128.25,3.95067733]
[1725607345327,0.05863971,128.27,128.25,0.05157733]
[1725607345517,0.05389605,128.27,128.25,0.0516032]
[1725607346926,3.8989,128.26,128.25,0.0516032]
[1725607347127,0.05389605,128.27,128.25,0.0516032]
[1725607347430,3.95269605,128.27,128.25,0.0516032]
[1725607347621,0.05389605,128.27,128.25,0.0516032]
[1725607348425,45.05,128.27,128.11,45.05]
[1725607348632,45.05,128.23,128.13,1.3979]
[1725607349637,3.9013,128.18,128.17,0.05380482]
[1725607349826,0.05371542,128.19,128.16,0.05600246]
[1725607350037,3.9018,128.17,128.16,0.05600246]
[1725607350924,0.05371542,128.19,128.16,0.05600246]
[1725607351331,0.05371542,128.19,128.18,3.9013]
[1725607351930,0.05371542,128.19,128.17,3.9016]
[1725607352428,3.9015,128.18,128.16,0.05600246]
[1725607352629,0.05371542,128.19,128.16,0.05600246]
[1725607352931,3.9016,128.17,128.16,0.05600246]
[1725607353524,45.05,128.18,128.05,1.3991]
[1725607353728,45.05,128.17,128.05,1.3991]
[1725607353932,45.05,128.2,128.05,1.3991]
[1725607354239,45.05,128.2,128.08,45.05]
[1725607354437,45.05,128.25,128.1,45.05]
[1725607354638,45.05,128.25,128.16,0.05292896]
[1725607354639,0.05477056,128.19,128.16,0.05292896]
[1725607354836,45.05,128.25,128.16,0.05292896]
[1725607354837,45.05,128.25,128.16,0.05427599]
[1725607355038,45.05,128.25,128.11,6.85350538]
[1725607355331,45.05,128.22,128.19,0.05328711]
[1725607355535,45.05,128.22,128.11,2.867]
[1725607355835,68.37,128.26,128.11,2.867]
[1725607355836,45.05,128.2,128.11,2.867]
[1725607356439,45.05,128.22,128.11,6.78832559]
[1725607356642,0.05789704,128.18,128.15,0.05100242]
[1725607357334,3.9019,128.17,128.15,0.05100242]
[1725607358134,3.95929704,128.18,128.15,0.05100242]
[1725607358439,0.05789704,128.18,128.15,0.05100242]
[1725607358634,3.9019,128.17,128.15,0.05100242]
[1725607358827,0.05789704,128.18,128.15,0.05100242]
[1725607360240,3.9018,128.17,128.15,0.05100242]
[1725607360448,0.05789704,128.18,128.15,0.05100242]
[1725607360736,0.05789704,128.18,128.16,3.9017]
[1725607361139,0.05789704,128.18,128.15,0.05100242]
[1725607362438,3.9016,128.17,128.15,0.05100242]
[1725607362640,0.05789704,128.18,128.15,0.05100242]
[1725607363134,0.05789704,128.18,128.11,1.4551]
[1725607363135,45.10789704,128.18,128.11,1.4551]
[1725607363437,45.10789704,128.18,128.06,1.3424]
[1725607363657,45.05,128.18,128.1,3.9035]
[1725607364334,45.10642309,128.15,128.13,0.05246363]
[1725607364539,45.10642309,128.15,128.06,2.7633]
[1725607364540,45.05,128.15,128.06,2.7633]
[1725607364732,45.05,128.12,128.06,3.9048]
[1725607364929,45.05,128.12,128.02,2.7633]
[1725607365133,3.9049,128.07,128.02,2.7633]
[1725607365451,0.1378,128.14,127.95,1.4457]
[1725607365452,45.05,128.08,127.96,45.05]
[1725607365751,3.9055,128.05,128.03,0.05764046]
[1725607365933,45.05,128.08,128.03,0.05764046]
[1725607366137,0.05839555,128.05,128.03,0.05764046]
[1725607366337,3.9056,128.04,128.03,0.05764046]
[1725607367238,45.05,128.05,127.83,2.87630146]
[1725607367449,45.05,128.0,127.9,4.1924]
[1725607367742,45.05,128.0,127.9,8.14339718]
[1725607367930,45.05,128.05,127.92,45.05]
[1725607368133,0.05425929,128.0,127.97,0.05093366]
[1725607368539,45.10425929,128.0,127.97,0.05093366]
[1725607368741,3.9074,127.98,127.97,0.00133366]
[1725607368942,0.05425929,128.0,127.97,0.00133366]
[1725607369745,3.96105929,128.0,127.97,0.00133366]
[1725607369942,0.05425929,128.0,127.97,0.00133366]
[1725607370539,0.05425929,128.0,127.97,3.88782955]
[1725607370743,45.05,128.09,127.97,0.00133366]
[1725607371045,45.05,128.11,127.98,1.3267]
[1725607371256,45.05,128.09,127.99,1.3948]
[1725607371453,45.05,128.09,127.99,5.3019]
[1725607372049,0.05172555,128.05,128.03,0.05219839]
[1725607372758,3.95702555,128.05,128.03,0.05219839]
[1725607372935,0.05172555,128.05,128.03,0.05219839]
[1725607373140,45.05,128.04,127.89,45.05]
[1725607373350,45.05,128.01,127.95,3.9081]
[1725607373847,45.05,128.01,127.93,7.90523645]
[1725607374053,0.05233167,127.98,127.96,0.05315089]
[1725607374451,3.95983167,127.98,127.96,0.05315089]
[1725607374947,0.05233167,127.98,127.91,2.7216]
[1725607375151,45.05,127.97,127.89,3.90995087]
[1725607375343,45.05,127.97,127.87,2.7443]
[1725607375547,45.05,127.97,127.87,6.60969079]
[1725607376051,0.05402168,127.93,127.91,0.04279896]
[1725607377644,45.05,127.92,127.85,3.9113]
[1725607377860,45.05,127.92,127.84,2.07797953]
[1725607378248,45.05,127.95,127.84,2.07797953]
[1725607378454,45.05,127.92,127.84,2.07797953]
[1725607378754,0.05006102,127.89,127.84,2.07797953]
[1725607378945,45.05,127.88,127.84,2.07797953]
[1725607379148,0.05006102,127.89,127.84,2.07797953]
[1725607379149,48.9614,127.85,127.84,2.07797953]
[1725607379351,45.05,127.85,127.83,2.87630146]
[1725607379756,45.05,127.85,127.81,3.35290464]
[1725607379945,45.05,127.82,127.81,3.35290464]
[1725607380145,45.05,127.87,127.81,3.35290464]
[1725607380344,0.05330886,127.83,127.81,3.35290464]
[1725607380750,0.05786408,127.83,127.81,3.35290464]
[1725607381349,15.621,128.06,127.82,3.9123]
[1725607381552,45.05,127.96,127.83,45.05]
[1725607381753,3.909,127.93,127.88,3.9104]
[1725607381948,45.05,127.96,127.83,46.4882]
[1725607382145,128.12456094,128.15,127.88,45.05]
[1725607382348,45.05,128.05,127.91,45.05]
[1725607382549,45.05,128.05,127.92,1.4519]
[1725607382755,0.05402168,127.99,127.97,0.05786408]
[1725607383265,45.05,128.02,127.92,1.4519]
[1725607383556,45.05,128.04,127.92,1.4519]
[1725607383755,0.05482924,127.99,127.97,0.05092069]
[1725607383956,0.05482924,127.99,127.97,3.95852069]
[1725607384253,45.05,128.02,127.97,0.05092069]
[1725607384566,3.9074,127.98,127.97,0.05092069]
[1725607384755,3.9074,127.98,127.92,1.4519]
[1725607384956,3.9074,127.98,127.96,0.05277167]
[1725607385262,0.05749133,127.98,127.96,0.05277167]
[1725607386052,45.06,127.99,127.85,45.06]
[1725607386244,45.06,127.99,127.86,1.3562]
[1725607386759,45.06,127.99,127.91,3.9095]
[1725607386954,45.06,127.99,127.86,1.3562]
[1725607387254,3.89062239,128.08,127.87,45.06]
[1725607387255,0.04978571,127.96,127.87,45.06]
[1725607387453,3.9079,127.97,127.87,45.06]
[1725607387769,0.05345806,127.93,127.87,45.06]
[1725607387954,45.06,128.01,127.87,45.06]
[1725607388849,45.06,128.01,127.86,1.3562]
[1725607388850,45.06,128.01,127.9,45.06]
[1725607389057,0.05821009,127.95,127.93,0.05562918]
[1725607389254,0.05693748,127.95,127.93,0.0526003]
[1725607389453,3.9068,128.0,127.95,3.9081]
[1725607389652,45.06,128.03,127.91,1.3615]
[1725607389851,45.06,128.06,127.92,45.06]
[1725607390364,45.06,128.06,127.92,46.5173]
[1725607390656,0.05154827,128.0,127.98,0.0561807]
[1725607390860,45.06,128.03,127.92,1.4573]
[1725607391061,3.96664412,128.0,127.98,0.04997602]
[1725607391556,0.05964412,128.0,127.98,0.04997602]
[1725607391760,3.9071,127.99,127.98,0.04997602]
[1725607392059,0.05964412,128.0,127.91,1.3615]
[1725607392265,45.06,128.01,127.91,1.3615]
[1725607392771,45.06,128.03,127.95,3.9083]
[1725607392970,45.06,128.03,127.91,46.4215]
[1725607393262,3.95769488,128.0,127.98,0.05123906]
[1725607393850,0.05069488,128.0,127.98,0.05123906]
[1725607394858,3.95769488,128.0,127.98,0.05123906]
[1725607395057,0.05069488,128.0,127.98,0.05123906]
[1725607396053,0.05069488,128.0,127.98,3.95843906]
[1725607396256,45.06,128.08,127.98,0.05123906]
[1725607396463,3.9053,128.05,128.0,3.9065]
[1725607396856,3.9053,128.05,127.98,1.3304]
[1725607397163,3.9053,128.05,128.01,3.9064]
[1725607397461,0.05183695,128.04,128.02,3.96251654]
[1725607397660,0.05183695,128.04,128.02,0.05661654]
[1725607397850,157.5375577,128.15,128.03,45.06]
[1725607398053,112.4775577,128.15,128.04,1.4076]
[1725607398266,157.5375577,128.15,128.04,1.4076]
[1725607398761,112.4775577,128.15,128.04,5.2354423]
[1725607398961,0.05502436,128.11,128.08,0.04930749]
[1725607399666,0.05502436,128.11,128.1,3.9037]
[1725607399965,0.05502436,128.11,128.08,0.04930749]
[1725607400457,45.06,128.2,128.08,0.04930749]
[1725607400665,45.06,128.2,128.07,45.06]
[1725607401759,0.04999734,128.15,128.12,0.05965117]
[1725607401956,3.95229734,128.15,128.11,3.9032]
[1725607402155,0.05302876,128.14,128.12,0.05157336]
[1725607403052,3.9028,128.13,128.12,0.05157336]
[1725607403264,45.06,128.13,128.05,2.7711]
[1725607403562,45.06,128.13,128.06,3.9048]
[1725607403756,45.06,128.15,128.05,6.61361413]
[1725607404259,0.05662721,128.11,128.09,0.05081276]
[1725607404663,0.05662721,128.11,128.1,3.9037]
[1725607404868,95.84326082,128.18,128.05,51.67361413]
[1725607405062,95.84326082,128.18,128.07,45.06]
[1725607405258,95.84326082,128.18,128.12,3.9029]
[1725607405656,95.84326082,128.18,128.07,44.99]
[1725607405856,0.05868994,128.14,128.11,0.0592533]
[1725607407365,3.96138994,128.14,128.11,0.0592533]
[1725607407563,0.05868994,128.14,128.11,0.0592533]
[1725607407765,3.903,128.13,128.11,0.0592533]
[1725607408154,0.05868994,128.14,128.11,0.0592533]
[1725607408475,44.99,128.13,128.05,1.3304]
[1725607409367,0.0502096,128.1,128.08,0.05483986]
[1725607409665,0.05022543,128.1,128.08,0.04996537]
[1725607409862,0.05022543,128.1,128.09,3.904]
[1725607410068,3.9026,128.14,128.08,0.04996537]
[1725607410264,95.84326082,128.18,128.08,0.04996537]
[1725607410471,95.84326082,128.18,128.11,3.9033]
[1725607410668,140.83326082,128.18,128.07,44.99]
[1725607410965,3.9027,128.14,128.05,1.3304]
[1725607411169,0.05508217,128.13,128.1,0.05720816]
[1725607411369,3.95808217,128.13,128.1,3.96262073]
[1725607411567,0.05508217,128.13,128.1,0.05902073]
[1725607412566,0.05508217,128.13,128.12,3.9031]
[1725607414079,0.1299,128.23,128.11,48.87819327]
[1725607414374,44.99,128.25,128.12,2.7989]
[1725607414570,44.99,128.23,128.12,2.7989]
[1725607414869,3.9016,128.18,128.16,0.05498957]
[1725607415063,0.05888222,128.19,128.16,0.05498957]
[1725607415472,3.9013,128.18,128.16,0.05498957]
[1725607415669,0.05888222,128.19,128.16,0.05498957]
[1725607416173,0.05888222,128.19,128.17,3.9013]
[1725607416374,0.05888222,128.19,128.16,0.05498957]
[1725607418379,0.05888222,128.19,128.18,3.9013]
[1725607418968,0.05888222,128.19,128.16,0.05498957]
[1725607419472,3.962653,128.32,128.16,44.99]
[1725607419675,44.99,128.3,128.16,44.99]
[1725607420075,44.99,128.25,128.13,1.443]
[1725607420271,44.99,128.23,128.13,1.443]
[1725607420472,3.9013,128.18,128.17,0.05325136]
[1725607421280,0.05357474,128.19,128.17,0.05325136]
[1725607421671,0.05357474,128.19,128.18,3.9013]
[1725607423080,0.05357474,128.19,128.17,0.05325136]
[1725607423381,3.8999,128.23,128.15,44.99]
[1725607423577,110.02747517,128.25,128.18,44.99]
[1725607423982,3.9,128.23,128.18,44.99]
[1725607424168,110.02747517,128.25,128.15,44.99]
[1725607424373,0.05891608,128.21,128.19,0.04935729]
[1725607424673,0.05891608,128.21,128.2,3.9007]
[1725607424882,0.05891608,128.21,128.19,0.04935729]
[1725607425882,0.1806,128.28,128.19,0.04935729]
[1725607426072,3.8997,128.24,128.18,3.90432359]
[1725607426271,3.8997,128.24,128.2,3.9005]
[1725607426476,3.9001,128.22,128.19,1.4316]
[1725607426777,45.1706,128.28,128.19,1.4316]
[1725607426980,3.9003,128.22,128.17,44.99]
[1725607427170,45.1706,128.28,128.16,1.3863]
[1725607427374,0.05007918,128.23,128.21,0.05178329]
[1725607427683,3.9001,128.22,128.21,0.05178329]
[1725607428187,3.95190897,128.23,128.21,0.05178329]
[1725607428383,0.05200897,128.23,128.21,0.05178329]
[1725607428776,107.40422835,128.32,128.21,44.99]
[1725607428986,107.40422835,128.32,128.24,3.8994]
[1725607429271,3.8981,128.29,128.22,2.6911]
[1725607429476,3.8981,128.29,128.25,3.899]
[1725607429680,0.05769891,128.28,128.22,2.6911]
[1725607429886,0.05769891,128.28,128.26,0.05181837]
[1725607430583,3.8986,128.27,128.26,0.05181837]
[1725607433078,0.05769891,128.28,128.26,0.05181837]
[1725607433274,0.05769891,128.28,128.27,3.8986]
[1725607433475,0.05769891,128.28,128.26,0.05181837]
[1725607434174,0.05769891,128.28,128.26,3.95051837]
[1725607434376,0.05769891,128.28,128.26,0.05181837]
[1725607435676,0.05769891,128.28,128.26,3.95061837]
[1725607435987,0.05769891,128.28,128.26,0.05181837]
[1725607438077,0.05769891,128.28,128.26,3.95061837]
[1725607438586,0.05769891,128.28,128.27,3.8986]
[1725607439485,0.5733,128.37,128.26,0.05181837]
[1725607439676,0.5733,128.37,128.27,44.99]
[1725607440084,3.8965,128.34,128.27,44.99]
[1725607440291,44.99,128.39,128.27,44.99]
[1725607440489,44.99,128.39,128.32,0.04981159]
[1725607440490,0.05327176,128.34,128.32,0.04981159]
[1725607440801,7.7895,128.4,128.17,44.99]
[1725607441096,44.99,128.35,128.22,1.5274]
[1725607441280,44.99,128.36,128.22,50.43146347]
[1725607441479,44.99,128.38,128.24,44.99]
[1725607441884,0.05654084,128.32,128.3,0.05567796]
[1725607442291,44.99,128.36,128.22,50.37452313]
[1725607442292,3.8983,128.28,128.22,50.37452313]
[1725607442492,0.05157585,128.32,128.3,0.05588608]
[1725607442792,44.99,128.33,128.22,1.5274]
[1725607443281,44.99,128.33,128.23,3.8997]
[1725607443487,3.8983,128.28,128.23,3.8997]
[1725607443689,44.99,128.33,128.22,1.5274]
[1725607443993,3.8987,128.27,128.26,0.0583991]
[1725607444194,0.05584082,128.28,128.25,0.05446899]
[1725607444496,3.8989,128.26,128.25,0.05446899]
[1725607444790,0.05584082,128.28,128.25,0.05446899]
[1725607444989,3.8986,128.27,128.25,0.05446899]
[1725607445189,0.05584082,128.28,128.25,0.05446899]
[1725607445493,3.8986,128.27,128.25,0.05446899]
[1725607445896,0.05584082,128.28,128.25,0.05446899]
[1725607446090,3.8989,128.26,128.25,0.05446899]
[1725607446694,44.99,128.28,128.19,2.8256]
[1725607446899,3.81278373,128.32,128.12,44.99]
[1725607446900,44.99,128.25,128.12,44.99]
[1725607447189,44.99,128.25,128.13,2.8601]
[1725607447390,44.99,128.23,128.13,2.8601]
[1725607447595,0.05993789,128.19,128.17,0.05696242]
[1725607447791,3.9013,128.18,128.17,0.05696242]
[1725607449305,0.05993789,128.19,128.07,44.99]
[1725607449597,44.99,128.21,128.09,3.904]
[1725607449808,3.9029,128.13,128.09,3.904]
[1725607450095,44.99,128.2,128.08,5.40227769]
[1725607450305,0.06003426,128.15,128.13,0.05392835]
[1725607450503,3.9028,128.14,128.13,0.05392835]
[1725607452997,0.04930254,128.15,128.13,0.05392835]
[1725607453400,0.04930254,128.15,128.13,3.95652835]
[1725607453597,0.04930254,128.15,128.13,0.05392835]
[1725607453906,3.95160254,128.15,128.13,0.05392835]
[1725607454090,0.04930254,128.15,128.13,0.05392835]
[1725607455100,0.04930254,128.15,128.13,3.95672835]
[1725607456004,0.04930254,128.15,128.13,0.05392835]
[1725607457314,0.04930254,128.15,128.14,3.9025]
[1725607458205,44.99,128.25,128.13,0.05392835]
[1725607458504,44.99,128.25,128.13,2.8708]
[1725607458704,3.9003,128.22,128.17,3.9014]
[1725607459008,44.99,128.25,128.15,3.95013027]
[1725607459212,3.95949225,128.21,128.19,0.05648443]
[1725607459504,44.99,128.2,127.92,241.76130152]
[1725607459706,45.1305,128.2,128.06,44.99]
[1725607459907,45.1305,128.2,128.07,1.4892]
[1725607460202,45.1305,128.2,128.11,3.9033]
[1725607460603,0.05461287,128.17,128.14,0.05933622]
[1725607460904,0.05461287,128.17,128.14,3.96153622]
[1725607461106,0.05461287,128.17,128.14,0.05933622]
[1725607461406,0.05461287,128.17,128.14,3.96183622]
[1725607461598,0.05461287,128.17,128.14,0.05933622]
[1725607462004,3.9022,128.15,128.14,0.05933622]
[1725607462498,3.903,128.13,128.07,1.4892]
[1725607462698,44.99,128.18,128.07,1.4892]
[1725607463110,3.903,128.13,128.09,3.9039]
[1725607463616,0.05392327,128.12,128.1,0.05766665]
[1725607463802,44.99,128.13,128.06,3.82248005]
[1725607464109,44.99,128.11,127.99,6.83199227]
[1725607464300,44.99,128.11,128.02,3.9059]
[1725607464498,44.99,128.11,128.0,1.4101]
[1725607464699,44.99,128.08,127.99,2.986]
[1725607464900,44.99,128.08,128.04,0.05359644]
[1725607464901,0.0570683,128.07,128.04,0.05359644]
[1725607465300,3.9618683,128.07,128.04,0.05359644]
[1725607465498,0.0570683,128.07,128.04,0.05359644]
[1725607466498,0.28720505,128.11,127.94,2.9094]
[1725607466700,45.27720505,128.1,127.97,44.99]
[1725607467005,3.9052,128.06,127.97,48.98250796]
[1725607467211,44.99,128.1,127.97,48.98250796]
[1725607467809,0.05236709,128.05,128.02,0.05507563]
[1725607468108,0.05236709,128.05,128.02,0.05681529]
[1725607468310,44.99,128.03,127.95,1.4828]
[1725607468611,159.59798059,128.03,127.95,1.4828]
[1725607468800,159.59798059,128.03,127.88,44.99]
[1725607469110,44.99,127.97,127.88,3.93803539]
[1725607469406,44.99,127.97,127.89,3.0318]
[1725607469607,44.99,127.95,127.89,3.0318]
[1725607469808,0.05023965,127.93,127.91,0.05781595]
[1725607470826,44.99,127.92,127.91,0.05781595]
[1725607471120,0.05023965,127.93,127.91,0.05781595]
[1725607471801,44.99,127.92,127.91,0.05781595]
[1725607472021,0.05023965,127.93,127.82,2.964]
[1725607472218,3.90857164,127.97,127.82,2.964]
[1725607472219,0.2874316,128.01,127.82,2.964]